fUST/lending_fUST_20250507
["ID","MTS","AMOUNT","RATE_DAILY","PERIOD"]
[360125157,1746558643133,-400.0,0.00019178,2]
[360125162,1746558643143,-527.6,0.00019178,2]
[360125167,1746558643153,-400.0,0.00019178,2]
[360125170,1746558643163,-400.0,0.00019178,2]
[360125172,1746558643173,-400.0,0.00019178,2]
[360125174,1746558643182,-5229.17,0.00019178,2]
[360125176,1746558643192,-307.06732803,0.00019178,2]
[360125178,1746558643202,-400.0,0.00019178,2]
[360125180,1746558643211,-400.0,0.00019178,2]
[360125182,1746558643221,-400.0,0.00019178,2]
[360125184,1746558643231,-400.0,0.00019178,2]
[360125186,1746558643241,-456.41521488,0.00019178,2]
[360125188,1746558643250,-1983.74,0.00019178,2]
[360125191,1746558643260,-401.94674852,0.00019178,2]
[360125193,1746558643270,-2153.14,0.00019178,2]
[360125195,1746558643279,-400.0,0.00019178,2]
[360125197,1746558643289,-557.46,0.00019178,2]
[360125199,1746558643298,-1070.9,0.00019178,2]
[360125201,1746558643308,-402.77319095,0.00019178,2]
[360125203,1746558643317,-214.02295616,0.00019178,2]
[360125205,1746558643327,-1442.26,0.00019178,2]
[360125207,1746558643337,-403.32021454,0.00019178,2]
[360125209,1746558643346,-400.0,0.00019178,2]
[360125211,1746558643355,-615.08,0.00019178,2]
[360125213,1746558643365,-830.5,0.00019178,2]
[360125215,1746558643374,-400.0,0.00019178,2]
[360125217,1746558643384,-296.88359585,0.00019178,2]
[360125219,1746558643393,-400.0,0.00019178,2]
[360125221,1746558643403,-400.0,0.00019178,2]
[360125223,1746558643414,-1187.69,0.00019178,2]
[360125225,1746558643424,-400.0,0.00019178,2]
[360125227,1746558643434,-400.0,0.00019178,2]
[360125229,1746558643443,-400.0,0.00019178,2]
[360125231,1746558643454,-400.0,0.00019178,2]
[360125234,1746558643466,-1520.06,0.00019178,2]
[360125236,1746558643475,-400.0,0.00019178,2]
[360125238,1746558643486,-604.77,0.00019178,2]
[360125240,1746558643497,-400.0,0.00019178,2]
[360125242,1746558643507,-678.42,0.00019178,2]
[360125244,1746558643516,-400.0,0.00019178,2]
[360125246,1746558643526,-809.57,0.00019178,2]
[360125248,1746558643536,-2490.81,0.00019178,2]
[360125250,1746558643545,-1754.28,0.00019178,2]
[360125252,1746558643555,-1548.23,0.00019178,2]
[360125254,1746558643565,-400.0,0.00019178,2]
[360125256,1746558643575,-1279.28,0.00019178,2]
[360125258,1746558643585,-406.5313941,0.00019178,2]
[360125261,1746558643595,-400.0,0.00019178,2]
[360125264,1746558643605,-400.0,0.00019178,2]
[360125266,1746558643616,-400.0,0.00019178,2]
[360125268,1746558643625,-400.0,0.00019178,2]
[360125271,1746558643636,-1084.29,0.00019178,2]
[360125273,1746558643648,-2103.27,0.00019178,2]
[360125275,1746558643659,-400.0,0.00019178,2]
[360125277,1746558643669,-400.47,0.00019178,2]
[360125279,1746558643678,-608.74,0.00019178,2]
[360125281,1746558643689,-788.64,0.00019178,2]
[360125283,1746558643698,-400.0,0.00019178,2]
[360125285,1746558643710,-2234.94,0.00019178,2]
[360125287,1746558643721,-400.0,0.00019178,2]
[360125289,1746558643731,-400.0,0.00019178,2]
[360125291,1746558643741,-400.0,0.00019178,2]
[360125293,1746558643751,-1854.03,0.00019178,2]
[360125295,1746558643760,-3239.57,0.00019178,2]
[360125297,1746558643770,-403.72300293,0.00019178,2]
[360125299,1746558643780,-401.8274264,0.00019178,2]
[360125301,1746558643789,-400.0,0.00019178,2]
[360125303,1746558643798,-400.0,0.00019178,2]
[360125305,1746558643808,-400.0,0.00019178,2]
[360125307,1746558643817,-400.0,0.00019178,2]
[360125309,1746558643827,-400.0,0.00019178,2]
[360125311,1746558643836,-400.0,0.00019178,2]
[360125313,1746558643847,-400.0,0.00019178,2]
[360125315,1746558643856,-400.0,0.00019178,2]
[360125317,1746558643866,-3577.98,0.00019178,2]
[360125319,1746558643876,-400.0,0.00019178,2]
[360125321,1746558643886,-715.16,0.00019178,2]
[360125323,1746558643895,-407.394944,0.00019178,2]
[360125325,1746558643905,-400.0,0.00019178,2]
[360125327,1746558643916,-400.0,0.00019178,2]
[360125329,1746558643926,-630.03,0.00019178,2]
[360125331,1746558643935,-233.76033808,0.00019178,2]
[360125333,1746558643944,-400.0,0.00019178,2]
[360125335,1746558643954,-400.0,0.00019178,2]
[360125337,1746558643964,-400.0,0.00019178,2]
[360125339,1746558643973,-400.0,0.00019178,2]
[360125341,1746558643983,-400.0,0.00019178,2]
[360125343,1746558643993,-498.97,0.00019178,2]
[360125345,1746558644002,-400.0,0.00019178,2]
[360125347,1746558644012,-400.0,0.00019178,2]
[360125349,1746558644021,-400.0,0.00019178,2]
[360125352,1746558644031,-400.0,0.00019178,2]
[360125354,1746558644041,-400.0,0.00019178,2]
[360125356,1746558644051,-400.0,0.00019178,2]
[360125358,1746558644061,-488.66,0.00019178,2]
[360125360,1746558644070,-400.0,0.00019178,2]
[360125362,1746558644080,-400.0,0.00019178,2]
[360125364,1746558644090,-400.0,0.00019178,2]
[360125366,1746558644099,-401.61499065,0.00019178,2]
[360125368,1746558644110,-163.4935406,0.00019178,2]
[360125370,1746558644119,-400.0,0.00019178,2]
[360125372,1746558644129,-400.0,0.00019178,2]
[360125374,1746558644139,-634.57,0.00019178,2]
[360125376,1746558644149,-400.0,0.00019178,2]
[360125378,1746558644158,-404.73978031,0.00019178,2]
[360125380,1746558644168,-400.0,0.00019178,2]
[360125382,1746558644177,-405.2688485,0.00019178,2]
[360125384,1746558644187,-400.0,0.00019178,2]
[360125386,1746558644197,-1856.71,0.00019178,2]
[360125388,1746558644207,-400.0,0.00019178,2]
[360125390,1746558644216,-400.0,0.00019178,2]
[360125392,1746558644226,-400.0,0.00019178,2]
[360125394,1746558644236,-402.30534856,0.00019178,2]
[360125396,1746558644246,-400.0,0.00019178,2]
[360125398,1746558644256,-220.64867925,0.00019178,2]
[360125400,1746558644265,-400.0,0.00019178,2]
[360125402,1746558644275,-400.0,0.00019178,2]
[360125404,1746558644285,-403.16813055,0.00019178,2]
[360125406,1746558644294,-400.0,0.00019178,2]
[360125408,1746558644304,-400.0,0.00019178,2]
[360125410,1746558644314,-400.0,0.00019178,2]
[360125413,1746558644323,-830.89,0.00019178,2]
[360125415,1746558644333,-7982.73,0.00019178,2]
[360125417,1746558644343,-17754.35,0.00019178,2]
[360125419,1746558644353,-400.0,0.00019178,2]
[360125421,1746558644363,-401.69554683,0.00019178,2]
[360125423,1746558644372,-400.0,0.00019178,2]
[360125425,1746558644381,-400.0,0.00019178,2]
[360125427,1746558644391,-400.0,0.00019178,2]
[360125429,1746558644401,-400.0,0.00019178,2]
[360125431,1746558644411,-400.0,0.00019178,2]
[360125433,1746558644421,-400.0,0.00019178,2]
[360125435,1746558644430,-406.64,0.00019178,2]
[360125437,1746558644441,-400.0,0.00019178,2]
[360125439,1746558644450,-400.0,0.00019178,2]
[360125441,1746558644460,-2324.59,0.00019178,2]
[360125443,1746558644470,-400.0,0.00019178,2]
[360125445,1746558644479,-400.0,0.00019178,2]
[360125447,1746558644489,-400.0,0.00019178,2]
[360125449,1746558644498,-739.47,0.00019178,2]
[360125451,1746558644507,-400.0,0.00019178,2]
[360125453,1746558644517,-400.0,0.00019178,2]
[360125455,1746558644527,-1204.28,0.00019178,2]
[360125457,1746558644536,-1612.51,0.00019178,2]
[360125459,1746558644546,-2363.71,0.00019178,2]
[360125461,1746558644555,-400.0,0.00019178,2]
[360125463,1746558644565,-400.0,0.00019178,2]
[360125465,1746558644575,-400.0,0.00019178,2]
[360125467,1746558644585,-400.0,0.00019178,2]
[360125469,1746558644594,-587.96,0.00019178,2]
[360125471,1746558644604,-6919.51,0.00019178,2]
[360125473,1746558644614,-1993.79,0.00019178,2]
[360125475,1746558644623,-400.0,0.00019178,2]
[360125478,1746558644633,-400.0,0.00019178,2]
[360125483,1746558644799,-1295.9,0.00019178,2]
[360125484,1746558644808,-400.0,0.00019178,2]
[360125485,1746558644818,-400.0,0.00019178,2]
[360125486,1746558644827,-2177.03,0.00019178,2]
[360125487,1746558644837,-400.0,0.00019178,2]
[360125489,1746558644847,-400.0,0.00019178,2]
[360125491,1746558644856,-400.0,0.00019178,2]
[360125493,1746558644866,-400.0,0.00019178,2]
[360125496,1746558644875,-400.0,0.00019178,2]
[360125498,1746558644884,-539.27,0.00019178,2]
[360125500,1746558644894,-400.0,0.00019178,2]
[360125502,1746558644903,-993.02,0.00019178,2]
[360125504,1746558644912,-1198.46,0.00019178,2]
[360125506,1746558644921,-400.0,0.00019178,2]
[360125508,1746558644931,-400.0,0.00019178,2]
[360125510,1746558644940,-400.0,0.00019178,2]
[360125512,1746558644949,-400.0,0.00019178,2]
[360125514,1746558644959,-511.39966207,0.00019178,2]
[360125516,1746558644968,-400.0,0.00019178,2]
[360125518,1746558644978,-1013.18,0.00019178,2]
[360125520,1746558644987,-400.0,0.00019178,2]
[360125522,1746558644996,-547.45027408,0.00019178,2]
[360125523,1746558645006,-400.0,0.00019178,2]
[360125526,1746558645016,-400.0,0.00019178,2]
[360125528,1746558645027,-406.77745766,0.00019178,2]
[360125530,1746558645036,-400.0,0.00019178,2]
[360125532,1746558645045,-2861.14,0.00019178,2]
[360125534,1746558645055,-1377.44,0.00019178,2]
[360125536,1746558645064,-400.0,0.00019178,2]
[360125538,1746558645073,-400.0,0.00019178,2]
[360125540,1746558645083,-400.0,0.00019178,2]
[360125542,1746558645092,-641.58,0.00019178,2]
[360125544,1746558645102,-454.06962,0.00019178,2]
[360125546,1746558645112,-300.0,0.00019178,2]
[360125548,1746558645121,-160.0,0.00019328,2]
[360125550,1746558645131,-160.0,0.00019328,2]
[360125552,1746558645140,-160.0,0.00019328,2]
[360125554,1746558645149,-6562.09412249,0.00019329,2]
[360125556,1746558645159,-200.0,0.0001935,4]
[360125558,1746558645168,-231.99734595,0.0001935,4]
[360125560,1746558645178,-400.0,0.00019452,2]
[360125562,1746558645187,-400.0,0.00019452,2]
[360125564,1746558645196,-226.79581726,0.00019452,2]
[360125565,1746558645206,-409.95456325,0.00019452,2]
[360125567,1746558645215,-400.0,0.00019452,2]
[360125570,1746558645225,-400.0,0.00019452,2]
[360125572,1746558645235,-400.0,0.00019452,2]
[360125574,1746558645245,-837.6,0.00019452,2]
[360125576,1746558645254,-400.0,0.00019452,2]
[360125578,1746558645263,-400.0,0.00019452,2]
[360125580,1746558645273,-400.0,0.00019452,2]
[360125582,1746558645283,-400.0,0.00019452,2]
[360125584,1746558645292,-400.0,0.00019452,2]
[360125586,1746558645301,-400.0,0.00019452,2]
[360125588,1746558645310,-400.0,0.00019452,2]
[360125590,1746558645320,-400.0,0.00019452,2]
[360125592,1746558645331,-400.0,0.00019452,2]
[360125594,1746558645340,-400.0,0.00019452,2]
[360125596,1746558645349,-400.0,0.00019452,2]
[360125598,1746558645358,-408.74870446,0.00019452,2]
[360125600,1746558645367,-400.0,0.00019452,2]
[360125602,1746558645377,-400.0,0.00019452,2]
[360125604,1746558645386,-400.0,0.00019452,2]
[360125606,1746558645396,-400.0,0.00019452,2]
[360125608,1746558645405,-400.0,0.00019452,2]
[360125609,1746558645414,-400.0,0.00019452,2]
[360125611,1746558645424,-400.0,0.00019452,2]
[360125613,1746558645434,-400.0,0.00019452,2]
[360125615,1746558645443,-400.0,0.00019452,2]
[360125617,1746558645452,-400.0,0.00019452,2]
[360125620,1746558645463,-400.0,0.00019452,2]
[360125621,1746558645472,-400.0,0.00019452,2]
[360125623,1746558645482,-531.64,0.00019452,2]
[360125625,1746558645492,-400.0,0.00019452,2]
[360125627,1746558645501,-777.02578881,0.00019452,2]
[360125630,1746558645511,-400.0,0.00019452,2]
[360125632,1746558645521,-400.0,0.00019452,2]
[360125634,1746558645531,-412.84,0.00019452,2]
[360125636,1746558645540,-480.77813517,0.00019452,2]
[360125638,1746558645550,-178.403,0.00019452,2]
[360125640,1746558645560,-400.0,0.00019452,2]
[360125642,1746558645569,-400.0,0.00019452,2]
[360125644,1746558645579,-400.0,0.00019452,2]
[360125646,1746558645588,-400.0,0.00019452,2]
[360125648,1746558645598,-400.0,0.00019452,2]
[360125650,1746558645611,-400.0,0.00019452,2]
[360125652,1746558645621,-400.0,0.00019452,2]
[360125654,1746558645631,-496.86,0.00019452,2]
[360125656,1746558645643,-400.0,0.00019452,2]
[360125658,1746558645653,-400.0,0.00019452,2]
[360125660,1746558645663,-400.0,0.00019452,2]
[360125662,1746558645673,-400.53537334,0.00019452,2]
[360125664,1746558645682,-400.0,0.00019452,2]
[360125666,1746558645692,-400.0,0.00019452,2]
[360125668,1746558645702,-400.0,0.00019452,2]
[360125670,1746558645711,-400.0,0.00019452,2]
[360125672,1746558645721,-485.1,0.00019452,2]
[360125674,1746558645731,-400.0,0.00019452,2]
[360125676,1746558645741,-593.14,0.00019452,2]
[360125679,1746558645752,-932.14,0.00019452,2]
[360125681,1746558645761,-400.0,0.00019452,2]
[360125683,1746558645772,-400.0,0.00019452,2]
[360125685,1746558645782,-400.0,0.00019452,2]
[360125687,1746558645792,-400.0,0.00019452,2]
[360125689,1746558645802,-400.0,0.00019452,2]
[360125691,1746558645812,-428.96269452,0.00019452,2]
[360125693,1746558645822,-406.17,0.00019452,2]
[360125695,1746558645832,-400.0,0.00019452,2]
[360125697,1746558645842,-417.02,0.00019452,2]
[360125699,1746558645852,-400.0,0.00019452,2]
[360125702,1746558645862,-400.0,0.00019452,2]
[360125704,1746558645872,-500.0,0.00019452,2]
[360125707,1746558645881,-400.0,0.00019452,2]
[360125709,1746558645891,-400.0,0.00019452,2]
[360125711,1746558645901,-400.0,0.00019452,2]
[360125713,1746558645910,-400.0,0.00019452,2]
[360125715,1746558645920,-400.0,0.00019452,2]
[360125717,1746558645930,-400.0,0.00019452,2]
[360125719,1746558645939,-1257.71,0.00019452,2]
[360125721,1746558645949,-400.0,0.00019452,2]
[360125723,1746558645960,-407.17,0.00019452,2]
[360125725,1746558645969,-400.0,0.00019452,2]
[360125727,1746558645979,-281.40802,0.00019452,2]
[360125730,1746558645989,-400.0,0.00019452,2]
[360125732,1746558645999,-400.0,0.00019452,2]
[360125734,1746558646008,-515.19,0.00019452,2]
[360125737,1746558646017,-400.0,0.00019452,2]
[360125739,1746558646027,-400.0,0.00019452,2]
[360125741,1746558646036,-400.0,0.00019452,2]
[360125743,1746558646046,-1034.36,0.00019452,2]
[360125746,1746558646057,-400.0,0.00019452,2]
[360125748,1746558646066,-400.0,0.00019452,2]
[360125750,1746558646076,-496.36,0.00019452,2]
[360125752,1746558646085,-400.0,0.00019452,2]
[360125754,1746558646095,-180.85457306,0.00019452,2]
[360125756,1746558646105,-407.28009437,0.00019452,2]
[360125758,1746558646114,-400.0,0.00019452,2]
[360125760,1746558646124,-400.0,0.00019452,2]
[360125762,1746558646134,-400.0,0.00019452,2]
[360125764,1746558646144,-2586.84,0.00019452,2]
[360125766,1746558646154,-400.0,0.00019452,2]
[360125768,1746558646164,-293.00261871,0.00019452,2]
[360125771,1746558646175,-400.0,0.00019452,2]
[360125773,1746558646185,-413.38101009,0.00019452,2]
[360125775,1746558646194,-661.8,0.00019452,2]
[360125777,1746558646204,-1496.73,0.00019452,2]
[360125779,1746558646213,-400.0,0.00019452,2]
[360125781,1746558646223,-200.03699063,0.00019452,2]
[360125783,1746558646232,-570.18,0.00019452,2]
[360125785,1746558646241,-423.63,0.00019452,2]
[360125787,1746558646252,-400.0,0.00019452,2]
[360125789,1746558646261,-400.0,0.00019452,2]
[360125791,1746558646271,-944.77,0.00019452,2]
[360125793,1746558646280,-400.0,0.00019452,2]
[360125795,1746558646290,-320.14194343,0.00019452,2]
[360125797,1746558646300,-400.0,0.00019452,2]
[360125799,1746558646310,-514.07,0.00019452,2]
[360125801,1746558646319,-400.0,0.00019452,2]
[360125803,1746558646329,-386.24297431,0.00019452,2]
[360125805,1746558646338,-436.95,0.00019452,2]
[360125807,1746558646348,-400.0,0.00019452,2]
[360125809,1746558646359,-409.58833829,0.00019452,2]
[360125811,1746558646368,-400.0,0.00019452,2]
[360125814,1746558646377,-400.0,0.00019452,2]
[360125816,1746558646387,-400.0,0.00019452,2]
[360125818,1746558646397,-591.31,0.00019452,2]
[360125820,1746558646407,-414.35908254,0.00019452,2]
[360125822,1746558646416,-400.0,0.00019452,2]
[360125824,1746558646426,-400.0,0.00019452,2]
[360125826,1746558646435,-400.0,0.00019452,2]
[360125828,1746558646444,-400.0,0.00019452,2]
[360125830,1746558646454,-1609.07,0.00019452,2]
[360125832,1746558646463,-516.37,0.00019452,2]
[360125834,1746558646472,-400.0,0.00019452,2]
[360125836,1746558646482,-575.12,0.00019452,2]
[360125838,1746558646491,-400.0,0.00019452,2]
[360125840,1746558646502,-400.0,0.00019452,2]
[360125842,1746558646511,-846.72,0.00019452,2]
[360125844,1746558646521,-400.0,0.00019452,2]
[360125846,1746558646530,-560.13,0.00019452,2]
[360125848,1746558646540,-400.0,0.00019452,2]
[360125850,1746558646549,-400.0,0.00019452,2]
[360125852,1746558646559,-482.88,0.00019452,2]
[360125854,1746558646568,-400.0,0.00019452,2]
[360125856,1746558646577,-400.0,0.00019452,2]
[360125858,1746558646587,-400.0,0.00019452,2]
[360125860,1746558646596,-400.0,0.00019452,2]
[360125862,1746558646606,-715.98,0.00019452,2]
[360125864,1746558646615,-4842.3,0.00019452,2]
[360125866,1746558646625,-400.0,0.00019452,2]
[360125869,1746558646636,-400.0,0.00019452,2]
[360125870,1746558646649,-400.0,0.00019452,2]
[360125873,1746558646658,-400.0,0.00019452,2]
[360125875,1746558646668,-400.0,0.00019452,2]
[360125877,1746558646677,-400.0,0.00019452,2]
[360125879,1746558646688,-400.0,0.00019452,2]
[360125881,1746558646698,-772.85,0.00019452,2]
[360125883,1746558646708,-400.0,0.00019452,2]
[360125885,1746558646718,-400.0,0.00019452,2]
[360125887,1746558646727,-400.0,0.00019452,2]
[360125890,1746558646738,-400.0,0.00019452,2]
[360125892,1746558646748,-400.0,0.00019452,2]
[360125894,1746558646758,-400.0,0.00019452,2]
[360125896,1746558646768,-400.0,0.00019452,2]
[360125898,1746558646778,-1545.39,0.00019452,2]
[360125900,1746558646788,-400.0,0.00019452,2]
[360125902,1746558646797,-400.0,0.00019452,2]
[360125904,1746558646808,-467.42,0.00019452,2]
[360125907,1746558646818,-217.83521639,0.00019452,2]
[360125909,1746558646828,-400.0,0.00019452,2]
[360125911,1746558646838,-400.0,0.00019452,2]
[360125913,1746558646848,-400.0,0.00019452,2]
[360125915,1746558646858,-400.0,0.00019452,2]
[360125917,1746558646868,-400.0,0.00019452,2]
[360125919,1746558646878,-1456.9,0.00019452,2]
[360125920,1746558646888,-400.0,0.00019452,2]
[360125923,1746558646899,-3102.66,0.00019452,2]
[360125925,1746558646909,-400.0,0.00019452,2]
[360125927,1746558646918,-504.7,0.00019452,2]
[360125929,1746558646927,-400.0,0.00019452,2]
[360125931,1746558646937,-400.0,0.00019452,2]
[360125933,1746558646947,-400.0,0.00019452,2]
[360125935,1746558646957,-1078.66,0.00019452,2]
[360125937,1746558646966,-400.0,0.00019452,2]
[360125939,1746558646976,-400.0,0.00019452,2]
[360125941,1746558646985,-5192.37,0.00019452,2]
[360125942,1746558646994,-1153.76,0.00019452,2]
[360125945,1746558647005,-400.0,0.00019452,2]
[360125947,1746558647014,-669.29,0.00019452,2]
[360125949,1746558647023,-400.0,0.00019452,2]
[360125951,1746558647032,-488.94,0.00019452,2]
[360125953,1746558647042,-860.61,0.00019452,2]
[360125955,1746558647051,-400.0,0.00019452,2]
[360125957,1746558647060,-400.0,0.00019452,2]
[360125959,1746558647070,-409.00279527,0.00019452,2]
[360125961,1746558647080,-1504.82,0.00019452,2]
[360125963,1746558647090,-400.0,0.00019452,2]
[360125965,1746558647099,-400.0,0.00019452,2]
[360125967,1746558647108,-400.0,0.00019452,2]
[360125969,1746558647119,-400.0,0.00019452,2]
[360125971,1746558647128,-769.25,0.00019452,2]
[360125973,1746558647139,-452.25804862,0.00019452,2]
[360125975,1746558647148,-353.55320165,0.00019452,2]
[360125977,1746558647158,-400.0,0.00019452,2]
[360125979,1746558647167,-1479.27,0.00019452,2]
[360125986,1746558647221,-400.0,0.00019452,2]
[360125988,1746558647230,-400.0,0.00019452,2]
[360125990,1746558647240,-400.0,0.00019452,2]
[360125992,1746558647250,-400.0,0.00019452,2]
[360125994,1746558647259,-400.0,0.00019452,2]
[360125995,1746558647268,-457.39,0.00019452,2]
[360125998,1746558647278,-400.0,0.00019452,2]
[360126000,1746558647288,-400.0,0.00019452,2]
[360126002,1746558647297,-400.0,0.00019452,2]
[360126004,1746558647306,-400.0,0.00019452,2]
[360126006,1746558647315,-488.23,0.00019452,2]
[360126008,1746558647325,-400.0,0.00019452,2]
[360126009,1746558647334,-523.68315863,0.00019452,2]
[360126012,1746558647343,-400.0,0.00019452,2]
[360126014,1746558647353,-400.0,0.00019452,2]
[360126015,1746558647362,-1330.93,0.00019452,2]
[360126017,1746558647371,-514.75,0.00019452,2]
[360126019,1746558647381,-400.0,0.00019452,2]
[360126022,1746558647390,-400.0,0.00019452,2]
[360126024,1746558647400,-400.0,0.00019452,2]
[360126026,1746558647409,-400.0,0.00019452,2]
[360126028,1746558647418,-513.03499992,0.00019452,2]
[360126030,1746558647428,-400.0,0.00019452,2]
[360126032,1746558647437,-8317.18,0.00019452,2]
[360126034,1746558647446,-756.19,0.00019452,2]
[360126036,1746558647455,-400.0,0.00019452,2]
[360126038,1746558647464,-536.96,0.00019452,2]
[360126040,1746558647472,-687.42,0.00019452,2]
[360126042,1746558647481,-400.0,0.00019452,2]
[360126043,1746558647490,-400.0,0.00019452,2]
[360126045,1746558647500,-1250.51,0.00019452,2]
[360126047,1746558647509,-3195.5,0.00019452,2]
[360126049,1746558647518,-608.49,0.00019452,2]
[360126051,1746558647527,-400.0,0.00019452,2]
[360126053,1746558647537,-400.0,0.00019452,2]
[360126055,1746558647546,-2848.39,0.00019452,2]
[360126057,1746558647556,-983.85,0.00019452,2]
[360126059,1746558647567,-504.90921476,0.00019452,2]
[360126061,1746558647576,-349.47005764,0.00019452,2]
[360126063,1746558647586,-400.0,0.00019452,2]
[360126065,1746558647596,-400.0,0.00019452,2]
[360126067,1746558647606,-400.0,0.00019452,2]
[360126069,1746558647615,-400.0,0.00019452,2]
[360126071,1746558647624,-787.27,0.00019452,2]
[360126073,1746558647634,-400.0,0.00019452,2]
[360126075,1746558647647,-591.3312437,0.00019452,2]
[360126077,1746558647657,-400.0,0.00019452,2]
[360126079,1746558647666,-2355.6,0.00019452,2]
[360126081,1746558647676,-400.0,0.00019452,2]
[360126083,1746558647686,-400.0,0.00019452,2]
[360126085,1746558647696,-1719.22,0.00019452,2]
[360126087,1746558647706,-400.0,0.00019452,2]
[360126089,1746558647715,-400.0,0.00019452,2]
[360126091,1746558647725,-400.0,0.00019452,2]
[360126093,1746558647734,-424.29,0.00019452,2]
[360126095,1746558647743,-400.0,0.00019452,2]
[360126097,1746558647753,-400.0,0.00019452,2]
[360126099,1746558647763,-400.0,0.00019452,2]
[360126101,1746558647772,-400.0,0.00019452,2]
[360126103,1746558647782,-3755.47,0.00019452,2]
[360126105,1746558647791,-289.22090928,0.00019452,2]
[360126107,1746558647801,-2530.54,0.00019452,2]
[360126109,1746558647811,-400.0,0.00019452,2]
[360126111,1746558647820,-400.0,0.00019452,2]
[360126113,1746558647831,-527.6,0.00019452,2]
[360126115,1746558647840,-400.0,0.00019452,2]
[360126117,1746558647850,-400.0,0.00019452,2]
[360126119,1746558647860,-400.0,0.00019452,2]
[360126121,1746558647869,-5229.17,0.00019452,2]
[360126123,1746558647879,-400.0,0.00019452,2]
[360126125,1746558647888,-400.0,0.00019452,2]
[360126127,1746558647898,-400.0,0.00019452,2]
[360126129,1746558647907,-400.0,0.00019452,2]
[360126131,1746558647916,-2153.14,0.00019452,2]
[360126133,1746558647926,-1983.74,0.00019452,2]
[360126135,1746558647935,-405.72679758,0.00019452,2]
[360126137,1746558647945,-557.46,0.00019452,2]
[360126139,1746558647954,-1070.9,0.00019452,2]
[360126141,1746558647965,-1442.26,0.00019452,2]
[360126143,1746558647975,-400.0,0.00019452,2]
[360126145,1746558647984,-615.08,0.00019452,2]
[360126147,1746558647993,-830.5,0.00019452,2]
[360126149,1746558648002,-400.0,0.00019452,2]
[360126151,1746558648011,-400.0,0.00019452,2]
[360126153,1746558648021,-400.0,0.00019452,2]
[360126155,1746558648030,-1187.69,0.00019452,2]
[360126157,1746558648040,-400.0,0.00019452,2]
[360126159,1746558648050,-400.0,0.00019452,2]
[360126161,1746558648060,-418.50079534,0.00019452,2]
[360126163,1746558648072,-400.0,0.00019452,2]
[360126165,1746558648081,-1520.06,0.00019452,2]
[360126167,1746558648093,-400.0,0.00019452,2]
[360126169,1746558648105,-604.77,0.00019452,2]
[360126171,1746558648116,-678.42,0.00019452,2]
[360126173,1746558648126,-403.97133091,0.00019452,2]
[360126175,1746558648136,-809.57,0.00019452,2]
[360126176,1746558648146,-2490.81,0.00019452,2]
[360126177,1746558648157,-1754.28,0.00019452,2]
[360126178,1746558648167,-1548.23,0.00019452,2]
[360126179,1746558648179,-400.0,0.00019452,2]
[360126180,1746558648189,-1279.28,0.00019452,2]